bitfinex-derivatives/quotes_BTCF0:USTF0_20251030
["timestamp","ask_amount","ask_price","bid_price","bid_amount"]
[1761821876071,0.53925423,110190.0,110180.0,1.95539534]
[1761821876274,0.50660333,110190.0,110180.0,2.11863867]
[1761821877463,0.49116333,110190.0,110180.0,2.11863867]
[1761821879181,0.50656333,110190.0,110180.0,2.11863867]
[1761821879372,0.53921423,110190.0,110180.0,2.11863867]
[1761821879779,0.53921423,110190.0,110180.0,1.95539534]
[1761821882185,0.55921423,110190.0,110180.0,1.95539534]
[1761821882690,0.53921423,110190.0,110180.0,1.95539534]
[1761821882874,0.55921423,110190.0,110180.0,1.95539534]
[1761821883075,0.52381423,110190.0,110180.0,1.95539534]
[1761821883384,0.92001423,110190.0,110180.0,0.09459534]
[1761821883686,1.14227774,110190.0,110180.0,0.07012416]
[1761821884080,1.09325756,110190.0,110180.0,0.07012416]
[1761821884679,1.19325756,110190.0,110180.0,0.07012416]
[1761821884880,1.40325756,110190.0,110180.0,0.07012416]
[1761821885687,1.41962684,110190.0,110180.0,0.07012416]
[1761821885889,1.44962684,110190.0,110180.0,0.07012416]
[1761821886082,1.28638351,110190.0,110180.0,0.07012416]
[1761821886283,1.18638351,110190.0,110180.0,0.07012416]
[1761821886482,1.34962684,110190.0,110180.0,0.07012416]
[1761821887591,1.18638351,110190.0,110180.0,0.07012416]
[1761821888091,1.34962684,110190.0,110180.0,0.07012416]
[1761821890795,1.18638351,110190.0,110180.0,0.07012416]
[1761821890987,0.31306351,110190.0,110180.0,0.07012416]
[1761821891184,0.59558351,110190.0,110180.0,0.07012416]
[1761821891790,0.28306351,110190.0,110180.0,0.07012416]
[1761821892094,0.59558351,110190.0,110180.0,0.43092416]
[1761821894693,0.28306351,110190.0,110180.0,0.43092416]
[1761821894895,0.59558351,110190.0,110180.0,0.43092416]
[1761821895692,0.57923491,110190.0,110180.0,0.43092416]
[1761821898789,0.54656333,110190.0,110180.0,0.09459534]
[1761821900700,0.52656333,110190.0,110180.0,0.09459534]
[1761821900999,0.52656333,110190.0,110180.0,0.61863867]
[1761821901300,0.54656333,110190.0,110180.0,0.61863867]
[1761821901485,0.57106751,110190.0,110180.0,0.61863867]
[1761821901687,0.25854751,110190.0,110180.0,0.61863867]
[1761821901888,0.55106751,110190.0,110180.0,0.45539534]
[1761821902089,0.54652333,110190.0,110180.0,0.61863867]
[1761821902401,0.57102753,110190.0,110180.0,0.45539534]
[1761821902597,0.54652333,110190.0,110180.0,0.45539534]
[1761821902796,0.57919491,110190.0,110180.0,0.45539534]
[1761821902999,0.57919491,110190.0,110180.0,0.43092416]
[1761821905300,0.57919491,110190.0,110180.0,0.45539534]
[1761821905702,0.57919491,110190.0,110180.0,0.43092416]
[1761821906199,0.57919491,110190.0,110180.0,0.45539534]
[1761821906500,0.57919491,110190.0,110180.0,0.61863867]
[1761821906700,0.26671491,110190.0,110180.0,0.61863867]
[1761821906907,0.55919491,110190.0,110180.0,0.61863867]
[1761821907100,0.57919491,110190.0,110180.0,0.61863867]
[1761821907904,0.26671491,110190.0,110180.0,0.61863867]
[1761821908103,0.57919491,110190.0,110180.0,0.61863867]
[1761821908706,0.05267158,110190.0,110180.0,0.70939907]
[1761821908901,0.02450607,110190.0,110180.0,0.88074561]
[1761821909100,0.36965765,110200.0,110190.0,0.1473522]
[1761821909396,0.33698607,110200.0,110190.0,0.70895566]
[1761821910110,0.36778607,110200.0,110190.0,0.70895566]
[1761821912002,0.36778607,110200.0,110190.0,0.70995566]
[1761821913211,0.5310294,110200.0,110190.0,0.70995566]
[1761821913705,0.36778607,110200.0,110190.0,0.70995566]
[1761821914505,0.5310294,110200.0,110190.0,0.70995566]
[1761821914711,0.5310294,110200.0,110190.0,0.45596013]
[1761821915507,0.5510294,110200.0,110190.0,0.45596013]
[1761821915714,0.5310294,110200.0,110190.0,0.43151416]
[1761821915908,0.72427273,110200.0,110190.0,0.07071416]
[1761821916412,0.70427273,110200.0,110190.0,0.07071416]
[1761821916613,0.75427273,110200.0,110190.0,0.07071416]
[1761821917416,0.59098662,110200.0,110190.0,0.07071416]
[1761821919016,0.54098662,110200.0,110190.0,0.07071416]
[1761821919216,1.20178662,110200.0,110190.0,0.03559416]
[1761821919421,1.20178662,110200.0,110190.0,0.05886416]
[1761821920513,1.43995213,110200.0,110190.0,0.05886416]
[1761821921416,1.53995213,110200.0,110190.0,0.01411416]
[1761821921722,1.53995213,110200.0,110190.0,0.03734416]
[1761821923220,1.53995213,110200.0,110190.0,0.06061416]
[1761821923619,1.39995213,110200.0,110190.0,0.06061416]
[1761821925818,1.41630073,110200.0,110190.0,0.06061416]
[1761821929326,1.41630073,110200.0,110190.0,0.03734416]
[1761821929624,1.41630073,110200.0,110190.0,0.06061416]
[1761821934229,2.01630073,110200.0,110190.0,0.06061416]
[1761821935425,2.01630073,110200.0,110190.0,0.07404416]
[1761821935732,1.9999299,110200.0,110190.0,0.07404416]
[1761821935932,1.9999299,110200.0,110190.0,0.07403492]
[1761821938536,2.16630073,110200.0,110190.0,0.01410492]
[1761821938730,2.14993778,110200.0,110190.0,0.01410492]
[1761821939440,2.16630073,110200.0,110190.0,0.01410492]
[1761821940833,2.16630073,110200.0,110190.0,0.03733492]
[1761821941230,2.16630073,110200.0,110190.0,0.06060492]
[1761821943341,2.06630073,110200.0,110190.0,0.06060492]
[1761821944028,2.06630073,110200.0,110190.0,0.03733492]
[1761821944233,1.46630073,110200.0,110190.0,0.01410492]
[1761821944939,1.46630073,110200.0,110190.0,0.03733492]
[1761821945136,1.46630073,110200.0,110190.0,0.06060492]
[1761821948251,1.46630073,110200.0,110190.0,0.01410492]
[1761821949143,1.56630073,110200.0,110190.0,0.01410492]
[1761821951236,1.56630073,110200.0,110190.0,0.03733492]
[1761821952236,1.40310018,110200.0,110190.0,0.05878492]
[1761821952442,1.56630073,110200.0,110190.0,0.05878492]
[1761821953047,1.25630073,110200.0,110190.0,0.07267492]
[1761821953237,1.41630073,110200.0,110190.0,0.07267492]
[1761821955148,1.55630073,110200.0,110190.0,0.07267492]
[1761821959354,1.39310018,110200.0,110190.0,0.07267492]
[1761821959550,1.39310018,110200.0,110190.0,0.04568]
[1761821959853,1.55630073,110200.0,110190.0,0.05879628]
[1761821961555,1.55626073,110200.0,110190.0,0.05879628]
[1761821962657,1.24382073,110200.0,110190.0,0.05879628]
[1761821962859,1.55626073,110200.0,110190.0,0.05879628]
[1761821963156,1.55626073,110200.0,110190.0,0.07150628]
[1761821963457,1.24382073,110200.0,110190.0,0.07150628]
[1761821963757,1.55626073,110200.0,110190.0,0.07150628]
[1761821964257,1.24382073,110200.0,110190.0,0.07150628]
[1761821964468,1.55626073,110200.0,110190.0,0.07150628]
[1761821972172,1.55626073,110200.0,110190.0,0.03734628]
[1761821972374,1.55626073,110200.0,110190.0,0.05991628]
[1761821975775,1.50724055,110200.0,110190.0,0.05991628]
[1761821979467,1.67050392,110200.0,110190.0,0.05991628]
[1761821981764,1.67050392,110200.0,110190.0,0.07391628]
[1761821985774,1.71954301,110200.0,110190.0,0.07391628]
[1761821991485,1.67050392,110200.0,110190.0,0.07391628]
[1761821991687,1.7195468,110200.0,110190.0,0.07391628]
[1761821995378,1.7194668,110200.0,110190.0,0.07391628]
[1761821995785,1.67042392,110200.0,110190.0,0.07391628]
[1761821997387,1.35806392,110200.0,110190.0,0.07391628]
[1761821997889,1.67042392,110200.0,110190.0,0.07391628]
[1761821998195,1.35806392,110200.0,110190.0,0.07391628]
[1761821998390,1.67042392,110200.0,110190.0,0.07391628]
[1761822001390,1.35806392,110200.0,110190.0,0.05991628]
[1761822001591,1.67042392,110200.0,110190.0,0.01411628]
[1761822001786,1.7194668,110200.0,110190.0,0.01411628]
[1761822002289,1.7194668,110200.0,110190.0,0.03592628]
[1761822002487,1.7194668,110200.0,110190.0,0.05750628]
[1761822003691,1.39300288,110200.0,110190.0,0.05750628]
[1761822003887,1.7194668,110200.0,110190.0,0.07150628]
[1761822004083,1.4071068,110200.0,110190.0,0.07150628]
[1761822004284,1.7194668,110200.0,110190.0,0.07150628]
[1761822005488,0.43984288,110200.0,110190.0,0.23473824]
[1761822005702,0.0634889,110200.0,110190.0,0.85918421]
[1761822005885,0.3450489,110200.0,110190.0,0.26190421]
[1761822006080,0.36955177,110200.0,110190.0,0.26190421]
[1761822006501,0.38495177,110200.0,110190.0,0.26190421]
[1761822006682,0.38495177,110200.0,110190.0,0.25918421]
[1761822007394,0.38495177,110200.0,110190.0,0.23473824]
[1761822007584,0.40035177,110200.0,110190.0,0.23473824]
[1761822007784,0.56358373,110200.0,110190.0,0.23473824]
[1761822007986,0.58358373,110200.0,110190.0,0.23473824]
[1761822008187,0.55089483,110200.0,110190.0,0.23473824]
[1761822008389,0.53089483,110200.0,110190.0,0.23473824]
[1761822008589,0.35226287,110200.0,110190.0,0.23473824]
[1761822008795,0.36766287,110200.0,110190.0,0.61998421]
[1761822010084,0.35226287,110200.0,110190.0,1.31073641]
[1761822010386,0.33679996,110210.0,110200.0,0.05937]
[1761822010590,0.31232,110210.0,110200.0,0.78683472]
[1761822010790,0.31232,110210.0,110200.0,1.38683472]
[1761822011294,0.31232,110210.0,110200.0,1.38411472]
[1761822011500,0.31232,110210.0,110200.0,1.38683472]
[1761822011693,0.31332,110210.0,110200.0,1.38683472]
[1761822011895,0.31332,110210.0,110200.0,1.47757872]
[1761822012090,0.34412,110210.0,110200.0,1.1483948]
[1761822012293,0.34412,110210.0,110200.0,1.22088276]
[1761822014100,0.34412,110210.0,110200.0,1.23001508]
[1761822014703,0.50735196,110210.0,110200.0,1.23001508]
[1761822014902,0.50735196,110210.0,110200.0,1.22088276]
[1761822015299,0.50635196,110210.0,110200.0,1.22188276]
[1761822015802,0.50635196,110210.0,110200.0,1.19751824]
[1761822016400,0.50635196,110210.0,110200.0,1.20677468]
[1761822016603,0.50635196,110210.0,110200.0,1.04354272]
[1761822016801,0.50635196,110210.0,110200.0,1.20677468]
[1761822017905,0.34312,110210.0,110200.0,1.20677468]
[1761822018403,0.31232,110210.0,110200.0,1.37000664]
[1761822018597,0.32772,110210.0,110200.0,1.20677468]
[1761822019404,0.31232,110210.0,110200.0,1.29751868]
[1761822019603,0.31232,110210.0,110200.0,1.46075064]
[1761822020403,0.34312,110210.0,110200.0,1.04354272]
[1761822020604,0.34312,110210.0,110200.0,1.19751824]
[1761822020903,0.50635196,110210.0,110200.0,1.19751824]
[1761822022399,0.50635196,110210.0,110200.0,0.59751824]
[1761822022597,0.52635196,110210.0,110200.0,0.07348628]
[1761822024707,0.50635196,110210.0,110200.0,0.07348628]
[1761822024908,0.52635196,110210.0,110200.0,0.07348628]
[1761822026008,0.34312,110210.0,110200.0,0.07348628]
[1761822026198,0.52635196,110210.0,110200.0,0.07348628]
[1761822026909,0.50635196,110210.0,110200.0,0.07348628]
[1761822027103,0.50635196,110210.0,110200.0,0.23671824]
[1761822028008,0.34312,110210.0,110200.0,0.23671824]
[1761822028217,0.52635196,110210.0,110200.0,0.23671824]
[1761822029408,0.52635196,110210.0,110200.0,0.07348628]
[1761822030911,0.36312,110210.0,110200.0,0.07348628]
[1761822031111,0.52635196,110210.0,110200.0,0.07348628]
[1761822031409,1.38038392,110210.0,110200.0,0.01411628]
[1761822031603,1.41307282,110210.0,110200.0,0.01411628]
[1761822031804,1.60307282,110210.0,110200.0,0.01411628]
[1761822032105,1.6521157,110210.0,110200.0,0.01411628]
[1761822032411,1.6194268,110210.0,110200.0,0.01411628]
[1761822032615,1.8894268,110210.0,110200.0,0.01411628]
[1761822033304,2.4894268,110210.0,110200.0,0.01411628]
[1761822033711,0.0308,110190.0,110180.0,0.42005]
[1761822033911,0.70627196,110190.0,110180.0,0.42005]
[1761822035715,0.70627196,110190.0,110180.0,0.42205]
[1761822036912,0.70627196,110190.0,110180.0,0.42505]
[1761822039510,0.54627196,110190.0,110180.0,0.42505]
[1761822041213,0.52627196,110190.0,110180.0,0.42505]
[1761822041418,0.5462643,110190.0,110180.0,0.42505]
[1761822041614,0.38304,110190.0,110180.0,0.42505]
[1761822041817,0.0308,110190.0,110180.0,0.5882743]
[1761822042017,0.34308,110190.0,110180.0,0.5882743]
[1761822043221,0.0308,110190.0,110180.0,0.5882743]
[1761822043416,0.34308,110190.0,110180.0,0.5882743]
[1761822045724,0.34308,110190.0,110180.0,0.60146171]
[1761822045919,0.34308,110190.0,110180.0,0.62582623]
[1761822046522,0.58743005,110210.0,110200.0,0.05733]
[1761822046721,0.47420575,110210.0,110200.0,0.07051741]
[1761822047023,0.75388,110210.0,110200.0,0.07051741]
[1761822048925,0.39308,110210.0,110200.0,0.07051741]
[1761822049123,0.36308,110210.0,110200.0,0.07051741]
[1761822049726,0.8871043,110210.0,110200.0,0.07051741]
[1761822049922,0.9071043,110210.0,110200.0,0.07051741]
[1761822051230,1.6057343,110210.0,110200.0,0.01318741]
[1761822051426,1.63834005,110210.0,110200.0,0.01318741]
[1761822053430,1.47511575,110210.0,110200.0,0.01318741]
[1761822053729,1.63834005,110210.0,110200.0,0.01318741]
[1761822056222,1.63934005,110210.0,110200.0,0.01318741]
[1761822057025,2.23934005,110210.0,110200.0,0.01318741]
[1761822060634,2.25577718,110210.0,110200.0,0.05697741]
[1761822061227,2.25577718,110210.0,110200.0,0.01318741]
[1761822062034,2.26577718,110210.0,110200.0,0.01318741]
[1761822062231,0.0308,110190.0,110180.0,0.05776]
[1761822062436,1.10974944,110190.0,110180.0,0.05776]
[1761822062733,1.10974944,110190.0,110180.0,0.04379]
[1761822063332,0.0298,110180.0,110170.0,0.05647]
[1761822063531,0.65646944,110180.0,110170.0,0.05647]
[1761822063836,0.65446944,110180.0,110170.0,0.05647]
[1761822064336,0.5918243,110180.0,110170.0,0.05647]
[1761822064635,0.0278,110180.0,110170.0,0.05847]
[1761822065435,0.0278,110180.0,110170.0,0.06047]
[1761822065738,0.0478,110180.0,110170.0,0.06047]
[1761822066035,0.0278,110180.0,110170.0,0.06047]
[1761822067637,0.2110243,110180.0,110170.0,0.06047]
[1761822067838,0.24366944,110180.0,110170.0,0.06047]
[1761822068536,0.2110243,110180.0,110170.0,0.06047]
[1761822075150,0.5718243,110180.0,110170.0,0.06047]
[1761822075737,0.8918243,110180.0,110170.0,0.06047]
[1761822075949,0.92446944,110180.0,110170.0,0.06047]
[1761822076149,0.95446944,110180.0,110170.0,0.004]
[1761822077039,1.05446944,110180.0,110170.0,0.004]
[1761822079254,1.10343715,110180.0,110170.0,0.004]
[1761822079550,1.07079201,110180.0,110170.0,0.004]
[1761822079749,1.07351201,110180.0,110170.0,0.004]
[1761822079944,1.05714374,110180.0,110170.0,0.004]
[1761822080141,1.05714374,110180.0,110160.0,8.581e-05]
[1761822080442,0.8698143,110170.0,110160.0,8.581e-05]
[1761822080645,1.4398143,110170.0,110160.0,8.581e-05]
[1761822081451,1.5398143,110170.0,110160.0,0.00308581]
[1761822081650,1.5398143,110170.0,110160.0,0.00508581]
[1761822082349,1.5398143,110170.0,110160.0,0.00308581]
[1761822082542,1.5398143,110170.0,110160.0,0.00508581]
[1761822084653,1.57241374,110170.0,110160.0,0.00508581]
[1761822084950,1.73563804,110170.0,110160.0,0.00508581]
[1761822085151,1.57241374,110170.0,110160.0,0.00508581]
[1761822085550,1.73563804,110170.0,110160.0,0.00508581]
[1761822088051,1.74563804,110170.0,110160.0,0.00508581]
[1761822088264,0.0248,110150.0,110140.0,1.51354]
[1761822088460,1.2711843,110150.0,110140.0,1.51354]
[1761822089048,1.2711843,110150.0,110140.0,0.01354]
[1761822089366,1.37127011,110150.0,110140.0,0.02299]
[1761822089658,1.37127011,110150.0,110140.0,0.04446]
[1761822090054,1.37627011,110150.0,110140.0,0.04446]
[1761822090254,1.38004011,110150.0,110140.0,0.02299]
[1761822090451,0.0248,110140.0,110130.0,1.51266]
[1761822090654,0.27811011,110140.0,110130.0,1.51266]
[1761822091753,0.28211011,110140.0,110130.0,1.51266]
[1761822092864,0.28311011,110140.0,110130.0,1.51266]
[1761822093165,0.11988581,110140.0,110130.0,1.51266]
[1761822093352,0.28311011,110140.0,110130.0,1.51266]
[1761822094365,0.11988581,110140.0,110130.0,1.51266]
[1761822094554,0.08988581,110140.0,110130.0,1.51266]
[1761822094862,0.25311011,110140.0,110130.0,1.51266]
[1761822095363,0.08988581,110140.0,110130.0,1.51266]
[1761822095966,0.06988581,110140.0,110130.0,1.51266]
[1761822098359,0.02988581,110140.0,110130.0,1.51266]
[1761822099960,0.04988581,110140.0,110130.0,1.51266]
[1761822100364,0.21311011,110140.0,110130.0,1.51266]
[1761822101964,0.19311011,110140.0,110130.0,1.51266]
[1761822102771,0.02988581,110140.0,110130.0,1.51266]
[1761822103278,0.19324023,110140.0,110130.0,1.67601442]
[1761822106466,0.19324023,110140.0,110130.0,1.51266]
[1761822106661,0.19324023,110140.0,110130.0,1.67601442]
[1761822108071,0.21324023,110140.0,110130.0,1.67601442]
[1761822110577,0.37659465,110140.0,110130.0,1.51266]
[1761822110782,0.37659465,110140.0,110130.0,1.67601442]
[1761822112375,0.37659465,110140.0,110130.0,1.70037894]
[1761822112578,0.37659465,110140.0,110130.0,1.53702452]
[1761822112777,0.37659465,110140.0,110130.0,1.51266]
[1761822113478,0.37659465,110140.0,110130.0,1.53702452]
[1761822114879,0.37659465,110140.0,110130.0,1.70037894]
[1761822115282,0.21324023,110140.0,110130.0,1.70037894]
[1761822115475,0.20084023,110140.0,110130.0,1.70037894]
[1761822116381,0.2334251,110140.0,110130.0,1.70037894]
[1761822116577,0.05767068,110140.0,110130.0,1.70037894]
[1761822116878,0.2010251,110140.0,110130.0,1.70037894]
[1761822117481,0.2210251,110140.0,110130.0,1.70037894]
[1761822118372,0.2010251,110140.0,110130.0,1.70037894]
[1761822118879,0.00508581,110140.0,110130.0,2.09375333]
[1761822119076,0.31752581,110140.0,110130.0,2.07210881]
[1761822119476,0.31752581,110140.0,110130.0,2.06938881]
[1761822119776,0.31752581,110140.0,110130.0,2.34276045]
[1761822119982,0.31752581,110140.0,110130.0,2.17940603]
[1761822120680,0.39338487,110160.0,110150.0,0.05873]
[1761822120873,0.34502487,110160.0,110150.0,0.24655584]
[1761822121069,0.31244,110160.0,110150.0,0.24655584]
[1761822121574,0.47579442,110160.0,110150.0,0.25562562]
[1761822121977,0.48479442,110160.0,110150.0,0.24655584]
[1761822122877,0.52228442,110160.0,110150.0,0.08320142]
[1761822123086,0.48479442,110160.0,110150.0,0.24655584]
[1761822124578,0.48479442,110160.0,110150.0,0.25544524]
[1761822125080,0.48479442,110160.0,110150.0,0.23097382]
[1761822125485,0.50228442,110160.0,110150.0,0.23097382]
[1761822125981,0.50228442,110160.0,110150.0,0.22208442]
[1761822126387,0.52228442,110160.0,110150.0,0.05873]
[1761822126689,0.50228442,110160.0,110150.0,0.22208442]
[1761822129480,0.51977442,110160.0,110150.0,0.05873]
[1761822129780,0.51977442,110160.0,110150.0,0.22208442]
[1761822129983,0.53977442,110160.0,110150.0,0.22208442]
[1761822130186,0.72312884,110160.0,110150.0,0.05873]
[1761822130384,0.75312884,110160.0,110150.0,0.05873]
[1761822131378,1.11392884,110160.0,110150.0,0.05873]
[1761822131584,1.35392884,110160.0,110150.0,0.05873]
[1761822131781,0.03498,110150.0,110140.0,0.05746]
[1761822132083,0.23833442,110150.0,110140.0,0.05746]
[1761822133079,0.24233442,110150.0,110140.0,0.05746]
[1761822133480,0.60313442,110150.0,110140.0,0.05746]
[1761822133781,0.60513442,110150.0,110140.0,0.05746]
[1761822133983,0.56513442,110150.0,110140.0,0.05746]
[1761822134185,0.56513442,110150.0,110140.0,0.22081442]
[1761822134186,0.61513442,110150.0,110140.0,0.22081442]
[1761822134385,0.3184,110150.0,110140.0,0.22081442]
[1761822134584,0.48175442,110150.0,110140.0,0.22081442]
[1761822134983,0.49924442,110150.0,110140.0,0.22081442]
[1761822135177,0.53673442,110150.0,110140.0,0.22081442]
[1761822135382,0.53673442,110150.0,110140.0,0.05746]
[1761822136392,0.54673442,110150.0,110140.0,0.05746]
[1761822138075,0.97008884,110150.0,110140.0,0.05746]
[1761822138288,0.80673442,110150.0,110140.0,0.05746]
[1761822138489,0.90673442,110150.0,110140.0,0.05746]
[1761822138890,1.26753442,110150.0,110140.0,0.05746]
[1761822139081,1.03753442,110150.0,110140.0,0.05746]
[1761822139283,0.93753442,110150.0,110140.0,0.05746]
[1761822139681,0.92753442,110150.0,110140.0,0.05746]
[1761822142183,0.87753442,110150.0,110140.0,0.22081442]
[1761822142490,0.89753442,110150.0,110140.0,0.22081442]
[1761822142888,0.53673442,110150.0,110140.0,0.05746]
[1761822143084,0.53673442,110150.0,110140.0,0.22081442]
[1761822143286,0.53673442,110150.0,110140.0,0.24528584]
[1761822143484,0.51673442,110150.0,110140.0,0.24528584]
[1761822144385,0.51673442,110150.0,110140.0,0.22081442]
[1761822144885,0.53673442,110150.0,110140.0,0.22081442]
[1761822145691,0.51673442,110150.0,110140.0,0.22081442]
[1761822146197,0.51673442,110150.0,110140.0,0.24528584]
[1761822146386,0.51673442,110150.0,110140.0,0.22081442]
[1761822147490,0.53673442,110150.0,110140.0,0.22081442]
[1761822147691,0.53573442,110150.0,110140.0,0.22081442]
[1761822148492,0.53373442,110150.0,110140.0,0.22081442]
[1761822148699,0.53473442,110150.0,110140.0,0.22081442]
[1761822149594,0.56731929,110150.0,110140.0,0.22081442]
[1761822149785,0.54731929,110150.0,110140.0,0.22081442]
[1761822154900,0.56731929,110150.0,110140.0,0.22081442]
[1761822155198,0.56731929,110150.0,110140.0,0.05746]
[1761822155398,0.61731929,110150.0,110140.0,0.05746]
[1761822158002,0.45396487,110150.0,110140.0,0.05746]
[1761822158302,0.61731929,110150.0,110140.0,0.05746]
[1761822159206,0.61731929,110150.0,110140.0,0.07105912]
[1761822160198,0.63731929,110150.0,110140.0,0.07105912]
[1761822161101,0.63731929,110150.0,110140.0,0.09553054]
[1761822161301,0.63731929,110150.0,110140.0,0.07105912]
[1761822161903,0.63731929,110150.0,110140.0,0.09553054]
[1761822163203,0.75731929,110150.0,110140.0,0.07105912]
[1761822163703,0.96288929,110150.0,110140.0,0.01359912]
[1761822163901,1.41624371,110150.0,110140.0,0.03662912]
[1761822164204,1.25288929,110150.0,110140.0,0.03662912]
[1761822164705,1.41624371,110150.0,110140.0,0.03662912]
[1761822165094,1.35288929,110150.0,110140.0,0.03662912]
[1761822165602,1.35289816,110150.0,110140.0,0.03662912]
[1761822166305,1.35289816,110150.0,110140.0,0.01359912]
[1761822167507,1.369281,110150.0,110140.0,0.01359912]
[1761822167697,1.549281,110150.0,110140.0,0.01359912]
[1761822171391,1.188481,110150.0,110140.0,0.01359912]
[1761822172909,0.03498,110130.0,110120.0,0.07932142]
[1761822173107,0.55074329,110130.0,110120.0,1.57932142]
[1761822173299,0.55483329,110130.0,110120.0,1.57932142]
[1761822173706,0.55074329,110130.0,110120.0,1.57932142]
[1761822174009,0.55074329,110130.0,110120.0,1.58032142]
[1761822174211,0.55074329,110130.0,110120.0,1.55585]
[1761822176514,0.38738,110130.0,110120.0,1.55585]
[1761822176812,0.51074329,110130.0,110120.0,1.55585]
[1761822177016,0.53074329,110130.0,110120.0,1.55585]
[1761822182805,1.22410658,110130.0,110120.0,0.08029058]
[1761822183012,1.22410658,110130.0,110120.0,0.05585]
[1761822183217,1.22410658,110130.0,110120.0,1.55585]
[1761822183604,1.25677015,110130.0,110120.0,1.55585]
[1761822183801,1.26086015,110130.0,110120.0,1.52207]
[1761822184007,0.03498,110120.0,110110.0,0.0556]
[1761822184319,0.70834329,110120.0,110110.0,0.0556]
[1761822185215,0.70834329,110120.0,110110.0,0.0586]
[1761822187313,0.84100686,110120.0,110110.0,0.0586]
[1761822187514,0.84963686,110120.0,110110.0,0.04519]
[1761822187723,0.74963686,110120.0,110110.0,0.02407]
[1761822188021,0.74963686,110120.0,110110.0,0.04519]
[1761822188618,0.84963686,110120.0,110110.0,0.04519]
[1761822189124,0.84963686,110120.0,110110.0,0.02407]
[1761822189332,0.84963686,110120.0,110110.0,0.003]
[1761822190008,0.84963686,110120.0,110110.0,0.02403]
[1761822190217,0.84963686,110120.0,110110.0,0.003]
[1761822191328,0.84963686,110120.0,110110.0,0.02403]
[1761822191520,0.84963686,110120.0,110110.0,0.04713]
[1761822192410,0.84963686,110120.0,110110.0,0.003]
[1761822192626,0.84963686,110120.0,110110.0,0.02403]
[1761822192926,0.84963686,110120.0,110110.0,0.04713]
[1761822194534,0.38764357,110120.0,110110.0,0.06077]
[1761822194820,0.56082329,110120.0,110110.0,0.06077]
[1761822195018,0.51082329,110120.0,110110.0,0.06077]
[1761822196820,0.34746,110120.0,110110.0,0.06077]
[1761822197016,0.32997,110120.0,110110.0,0.66077]
[1761822197323,0.31248,110120.0,110110.0,0.66077]
[1761822197524,0.31248,110120.0,110110.0,0.22685329]
[1761822197725,0.06764357,110140.0,110130.0,0.05657]
[1761822197918,0.34766,110140.0,110130.0,0.05657]
[1761822198319,0.51102329,110140.0,110130.0,0.05657]
[1761822199226,0.53202329,110140.0,110130.0,0.05657]
[1761822200017,0.51202329,110140.0,110130.0,0.05657]
[1761822200626,0.34866,110140.0,110130.0,0.05657]
[1761822200842,0.51202329,110140.0,110130.0,0.05657]
[1761822202428,0.53202329,110140.0,110130.0,0.05657]
[1761822203330,0.51202329,110140.0,110130.0,0.05657]
[1761822203625,0.53202329,110140.0,110130.0,0.05657]
[1761822204727,0.36866,110140.0,110130.0,0.05657]
[1761822204928,0.53202329,110140.0,110130.0,0.05657]
[1761822210026,0.19934329,110140.0,110130.0,0.05657]
[1761822210227,0.51186329,110140.0,110130.0,0.05657]
[1761822214827,0.53186329,110140.0,110130.0,0.05657]
[1761822216129,0.53186329,110140.0,110130.0,0.02166]
[1761822216332,0.03498,110130.0,110120.0,0.08100567]
[1761822216634,0.03498,110130.0,110120.0,0.05657]
[1761822216635,0.19834329,110130.0,110120.0,0.05657]
[1761822217529,0.19834329,110130.0,110120.0,0.05757]
[1761822218534,0.19834329,110130.0,110120.0,0.05857]
[1761822218839,0.21834329,110130.0,110120.0,0.05857]
[1761822219032,0.19834329,110130.0,110120.0,0.05857]
[1761822221530,0.18085329,110130.0,110120.0,0.08300567]
[1761822221839,0.19834329,110130.0,110120.0,0.08300567]
[1761822222932,0.03498,110130.0,110120.0,0.08300567]
[1761822223633,0.01749,110130.0,110120.0,0.08572567]
[1761822223934,0.50942329,110140.0,110130.0,0.0573]
[1761822224132,0.50942329,110140.0,110130.0,0.08173567]
[1761822225636,0.01749,110150.0,110140.0,0.1480935]
[1761822225932,0.54352686,110160.0,110150.0,0.0573]
[1761822227137,0.54652686,110160.0,110150.0,0.0573]
[1761822227339,0.70980643,110160.0,110150.0,0.0573]
[1761822228140,0.67714286,110160.0,110150.0,0.0573]
[1761822228636,0.3505,110160.0,110150.0,0.22062143]
[1761822228835,0.03266357,110170.0,110150.0,0.29429883]
[1761822229139,0.483085,110180.0,110170.0,0.0573]
[1761822230342,0.45642143,110180.0,110170.0,0.0573]
[1761822232138,0.45942143,110180.0,110170.0,0.0573]
[1761822232844,0.64274286,110180.0,110170.0,0.0573]
[1761822233727,0.62274286,110180.0,110170.0,0.0573]
[1761822233933,0.45942143,110180.0,110170.0,0.0573]
[1761822234843,0.47942143,110180.0,110170.0,0.0573]
[1761822235144,0.54942143,110180.0,110170.0,0.0573]
[1761822236348,0.582085,110180.0,110170.0,0.0573]
[1761822238349,0.74540643,110180.0,110170.0,0.0573]
[1761822240844,0.74949643,110180.0,110170.0,0.04428]
[1761822241837,0.03975,110170.0,110160.0,0.02201]
[1761822242040,0.03498,110160.0,110150.0,0.0573]
[1761822242353,0.51078143,110160.0,110150.0,0.22062143]
[1761822244143,0.51278143,110160.0,110150.0,0.22062143]
[1761822245151,0.35146,110160.0,110150.0,0.22062143]
[1761822249148,0.35146,110160.0,110150.0,0.24507353]
[1761822253558,0.35146,110160.0,110150.0,0.0817521]
[1761822253759,0.35146,110160.0,110150.0,0.24507353]
[1761822255258,0.35146,110160.0,110150.0,0.2777021]
[1761822256350,0.35146,110160.0,110150.0,0.25325]
[1761822257060,0.51478143,110160.0,110150.0,0.25325]
[1761822257554,0.69810286,110160.0,110150.0,0.08992857]
[1761822257764,0.72810286,110160.0,110150.0,0.08174548]
[1761822257951,0.84810286,110160.0,110150.0,0.08174818]
[1761822258153,0.85673286,110160.0,110150.0,0.06872818]
[1761822258863,0.03498,110150.0,110140.0,0.11325675]
[1761822259159,0.21830143,110150.0,110140.0,0.08062818]
[1761822259859,0.21830143,110150.0,110140.0,0.06760818]
[1761822260063,0.21830143,110150.0,110140.0,0.04599818]
[1761822260262,0.22030143,110150.0,110140.0,0.04599818]
[1761822260466,0.22030143,110150.0,110140.0,0.02155]
[1761822260662,0.03498,110140.0,110130.0,0.27657818]
[1761822260870,0.51078143,110140.0,110130.0,0.24394961]
[1761822261063,0.51078143,110140.0,110130.0,0.08062818]
[1761822261255,0.51078143,110140.0,110130.0,0.24394961]
[1761822261455,0.53078143,110140.0,110130.0,0.24394961]
[1761822261759,0.51078143,110140.0,110130.0,0.06760818]
[1761822262160,0.51078143,110140.0,110130.0,0.06860818]
[1761822265070,0.53078143,110140.0,110130.0,0.06860818]
[1761822266170,0.53078143,110140.0,110130.0,0.04416]
[1761822266360,0.53078143,110140.0,110130.0,0.06860818]